Cogmind - Beta 17 @@@ ROGUE MODE // 2026.08.01 @ 11:15:24 Player: Uranium-235 Result: Self-destructed Performance ------------- Evolutions (2) 1000 Regions Visited (4) 800 Robots Destroyed (37) 185 Value Destroyed (1072) 1072 Prototype IDs (2) 40 Alien Tech Used (0) 0 Bonus (0) 0 TOTAL SCORE: 3097 Bonus ------- None Cogmind --------- Core Integrity 179/550 Matter 300/300 Energy 13/100 System Corruption 0% Temperature Cool (28) Movement Core (800) Ox15 Location -8/Materials Parts ------- > --- POWER (1) -------- (None) > --- PROPULSION (3) --- (None) > --- UTILITY (4) ------ Large Storage Unit Medium Reactive Plating > --- WEAPON (3) ------- Riot Gun Hammer Hammer > --- INVENTORY (15) --- Ion Engine Light Ion Engine Improved Heat Sink Structural Scanner Particle Charger Medium Reactive Plating Makeshift System Shield High-powered Tractor Beam Particle Gun Proton Missile Launcher Proton Missile Launcher Datajack Piercing Trap Peak State ------------ > --- POWER ------------ Subdweller Power Source > --- PROPULSION ------- Light Treads Armored Wheel Armored Wheel > --- UTILITY ---------- Large Storage Unit Improved Terrain Scanner Light Armor Plating Medium Reactive Plating > --- WEAPON ----------- Field Laser Hammer Hammer > --- INVENTORY -------- Ion Engine Light Ion Engine Improved Heat Sink Structural Scanner Particle Charger Medium Reactive Plating Medium Reactive Plating Makeshift System Shield High-powered Tractor Beam Riot Gun Particle Gun Proton Missile Launcher Proton Missile Launcher Datajack Piercing Trap [Rating: 24] Favorites ----------- Power Ion Engine Engine Ion Engine Propulsion Light Treads Treads Light Treads Wheel Armored Wheel Utility Large Storage Unit Device Improved Terrain Scanner Storage Large Storage Unit Protection Light Armor Plating Weapon Hammer Energy Gun Medium Laser Ballistic Gun Light Assault Rifle Special Weapon Mining Laser Impact Weapon Hammer Build | -11 -10 -10 -10 -8 ------- Run | Yrd Mat Min Sub Mat Slots Evolved 4 | . . . . 4 Power . | . . . . . Propulsion 1 | . . . . 1 Utility 2 | . . . . 2 Weapon 1 | . . . . 1 Parts Attached 26 | 7 7 1 2 9 Power 2 | 1 . . 1 . Engine 2 | 1 . . 1 . Core . | . . . . . Reactor . | . . . . . Propulsion 5 | 2 . . 1 2 Treads 3 | 2 . . 1 . Leg . | . . . . . Wheel 2 | . . . . 2 Hover . | . . . . . Flight . | . . . . . Utility 9 | 2 3 1 . 3 Device 3 | 1 1 1 . . Storage 2 | 1 1 . . . Processor . | . . . . . Hackware . | . . . . . Protection 4 | . 1 . . 3 Artifact . | . . . . . Weapon 10 | 2 4 . . 4 Energy Gun 4 | 1 1 . . 2 Energy Cannon . | . . . . . Ballistic Gun 1 | 1 . . . . Ballistic Cannon . | . . . . . Launcher . | . . . . . Special Weapon 1 | . 1 . . . Impact Weapon 4 | . 2 . . 2 Slashing Weapon . | . . . . . Piercing Weapon . | . . . . . Special Melee Weapon . | . . . . . Unidentified Prototypes . | . . . . . Parts Lost 14 | . . . 3 11 Power 2 | . . . 1 1 Propulsion 5 | . . . 1 4 Utility 5 | . . . 1 4 Weapon 2 | . . . . 2 Highest Loss Streak 8 | . . . 2 8 To Critical Strikes . | . . . . . Average Backups 11 | 5 10 15 13 13 Power 1 | . 1 2 2 2 Propulsion 3 | 3 3 4 3 1 Utility 2 | . 1 3 2 4 Weapon 3 | 1 3 5 5 4 Tool/Special . | . . . . . Unused Backups 22 | . 6 . 1 15 Power 3 | . 1 . . 2 Propulsion 8 | . 5 . 1 2 Utility 6 | . . . . 6 Weapon 4 | . . . . 4 Tool/Special 1 | . . . . 1 Average Slot Usage (%) 95 | . 99 100 99 82 Engine 12 | . 14 14 13 8 Treads 23 | . 27 28 28 10 Wheel 1 | . . . . 6 Device 12 | . 12 1 12 18 Storage 12 | . 14 14 14 9 Protection 3 | . 1 12 . 4 Energy Gun 1 | . 1 . . 2 Impact Weapon 24 | . 23 28 28 22 Peak Build Rating 24 | 9 10 8 10 24 Average Rating 10 | 6 9 8 8 16 On Entrance 7 | . 9 8 8 10 Avg Prop Armor Cover (%) 8 | . . . . 8 Naked Turns . | . . . . . Heaviest Build 56 | 14 32 32 32 56 Greatest Support 40 | 40 40 40 40 40 Greatest Overweight (x) 9 | 2 . . . 9 Average Overweight (x) . | . . . . . Largest Inventory Capacity 15 | 8 15 15 15 15 Average Capacity 13 | 7 13 15 15 15 Most Carried 15 | 8 15 15 15 15 Average Carried 11 | 5 10 15 13 14 Final Capacity 15 | 8 15 15 15 15 Final Carried 15 | 8 15 15 15 13 Class Distribution -------------------- 100% | Mutant Dominant Class ---------------- Mutant | -10/Materials Mutant | -10/Mines Mutant | -10/Subcaves Mutant | -8/Materials Resources | -11 -10 -10 -10 -8 ----------- Run | Yrd Mat Min Sub Mat Matter Collected 540 | 278 92 . 40 130 Remotely . | . . . . . Salvage Created 1424 | 172 596 86 86 484 Parts 49 | 14 25 1 4 5 Haulers Intercepted 1 | . 1 . . . Recyclers Shooed 1 | . 1 . . . Parts Field Recycled . | . . . . . Retrieved Matter . | . . . . . Parts Self-Destructed 2 | . . . 2 . Prevented . | . . . . . Parts Restored . | . . . . . Kills | -11 -10 -10 -10 -8 ------- Run | Yrd Mat Min Sub Mat Combat Hostiles Destroyed 27 | . 12 2 3 10 Melee 8 | . 3 1 1 3 Guns 5 | . 5 . . . Classes Destroyed 9 | 2 4 . 1 2 Worker 1 | . . . . 1 Tunneler 5 | 4 1 . . . Hauler 1 | . 1 . . . Recycler 2 | 1 1 . . . Operator 1 | . 1 . . . Swarmer 4 | . 3 . 1 . Grunt 20 | . 9 2 . 9 Duelist 1 | . . . . 1 Subdweller 2 | . . . 2 . Best Kill Streak 4 | 2 3 2 1 4 Combat Bots Only 3 | . 3 2 1 3 Max Kills in Single Turn 1 | 1 1 1 1 1 Gunslinging . | . . . . . Exploded . | . . . . . Melee 1 | . 1 1 1 1 Uniques/NPCs Destroyed . | . . . . . Combat | -11 -10 -10 -10 -8 -------- Run | Yrd Mat Min Sub Mat Hostile Shots Fired 224 | . 36 18 28 142 Missed 47 | . 6 2 8 31 Hits 177 | . 30 16 20 111 Melee 4 | . . . . 4 Projectile 173 | . 30 16 20 107 Critical Strikes 7 | . . 1 2 4 Damage Taken 2637 | . 318 186 316 1817 Core 552 | . 57 64 60 371 Absorbed by Shields . | . . . . . Ignored by Resistances 37 | . . . . 37 Regen/Repaired (Parts) 94 | . 94 . . . Core Remaining (%) 63 | 100 . . 27 . Volleys Fired 29 | 12 13 . . 4 Largest 2 | 2 2 . . 1 Hottest 100 | 70 100 . . 50 Shots Fired 49 | 20 25 . . 4 Gun 48 | 20 24 . . 4 Cannon . | . . . . . Launcher . | . . . . . Special 1 | . 1 . . . Kinetic 20 | 8 12 . . . Thermal 25 | 12 13 . . . Explosive . | . . . . . Electromagnetic 4 | . . . . 4 Robot Hit Streak 13 | 6 12 . . 13 Robot Miss Streak 3 | 3 2 . . 1 Penetration Max . | . . . . . Secondary Targets . | . . . . . Shots Hit Robots 132 | 12 41 10 12 57 Core Hits 33 | 7 15 2 2 7 Critical Kills 4 | . 1 . . 3 Critical Parts Destroyed 11 | . 6 1 . 4 Critical Strikes 16 | . 7 1 1 7 Smash 16 | . 7 1 1 7 Melee Attacks 142 | . 37 16 16 73 Impact 142 | . 37 16 16 73 Slashing . | . . . . . Piercing . | . . . . . Sneak Attacks 7 | . 6 . . 1 Combat Hostiles . | . . . . . Follow-up Attacks 21 | . 1 4 2 14 Damage Inflicted 3129 | 136 965 256 347 1425 Guns 399 | 136 185 . . 78 Cannons . | . . . . . Explosions . | . . . . . Melee 2730 | . 780 256 347 1347 Ramming . | . . . . . Kinetic 84 | 23 61 . . . Thermal 237 | 113 124 . . . Explosive . | . . . . . Electromagnetic 78 | . . . . 78 Impact 2730 | . 780 256 347 1347 Slashing . | . . . . . Piercing . | . . . . . Highest Corruption . | . . . . . Average Corruption . | . . . . . Corruption Purged . | . . . . . Corruption Blocked . | . . . . . Overload Shots . | . . . . . Overflow Damage 446 | . 208 48 54 136 Projectiles . | . . . . . Explosions . | . . . . . Melee 446 | . 208 48 54 136 Knockbacks 12 | . 6 . . 6 Impact 12 | . 6 . . 6 Kinetic . | . . . . . Secondary . | . . . . . Self-Inflicted Damage . | . . . . . Shots . | . . . . . Rammed . | . . . . . Targets Rammed . | . . . . . Kicked . | . . . . . Crushed . | . . . . . Highest Temperature 115 | 42 115 18 . 29 Average Temperature 32 | 19 49 10 . 12 Received Heat Transfer 1224 | . 147 123 45 909 Siege Activations . | . . . . . Martial Activations . | . . . . . Shielding Activations . | . . . . . Robots Disrupted . | . . . . . Combat Hostiles . | . . . . . Robots Corrupted 17 | . 7 1 2 7 Combat Hostiles 14 | . 4 1 2 7 Parts Fried 18 | . 10 1 2 5 Impact Corruptions 25 | . 11 2 3 9 Robots Melted . | . . . . . Combat Hostiles . | . . . . . Parts Melted . | . . . . . Heat Transferred 703 | 333 370 . . . Parts Sabotaged . | . . . . . Parts Stolen . | . . . . . Parts Stripped . | . . . . . Power Chain Reactions . | . . . . . Alert | -11 -10 -10 -10 -8 ------- Run | Yrd Mat Min Sub Mat Maximum Alert Level . | . . . . . Low Security (%) 100 | 100 100 100 . 100 Level 1 . | . . . . . Level 2 . | . . . . . Level 3 . | . . . . . Level 4 . | . . . . . Level 5 . | . . . . . High Security . | . . . . . Max Security . | . . . . . Peak Influence 100 | 5 100 55 . 74 Initial 25 | . . 25 . . Average 24 | 1 30 29 . 19 Influence Increases 750 | 25 343 50 30 302 Destroy 0b10 Robot/C 500 | . 240 40 20 200 Destroy 0b10 Robot/NC 50 | 25 20 . . 5 Destroy Leader 112 | . 62 10 10 30 Successful Hack 20 | . 15 . . 5 Destroy Structure 8 | . 6 . . 2 Lose Combat Pursuer 60 | . . . . 60 Influence Decreases 694 | 25 278 115 30 246 Entered New Map 40 | . . 40 . . Time Decay 544 | 25 278 75 30 136 Lost Part 110 | . . . . 110 Squads Dispatched 5 | . 3 . . 2 Investigation 2 | . 1 . . 1 Extermination . | . . . . . Reinforcement 3 | . 2 . . 1 Assault . | . . . . . Garrison . | . . . . . Intercept . | . . . . . Searches Triggered . | . . . . . Construction Impeded . | . . . . . Haulers Reinforced . | . . . . . Active Scanning Responses . | . . . . . Cargo Convoy Interrupts . | . . . . . Stealth | -11 -10 -10 -10 -8 --------- Run | Yrd Mat Min Sub Mat Distress Signals 4 | . 2 . . 2 Communications Jammed . | . . . . . Distress Signals . | . . . . . Times Spotted 53 | . 23 2 5 23 Peak Tracking Total 6 | . 4 2 3 6 Tactical Retreats 3 | . . . . 3 Traps | -11 -10 -10 -10 -8 ------- Run | Yrd Mat Min Sub Mat Traps Triggered 1 | . 1 . . . Indirectly . | . . . . . Trap Hack Attempts . | . . . . . Triggered . | . . . . . Disarmed . | . . . . . Reprogrammed . | . . . . . Reused . | . . . . . Traps Extracted . | . . . . . Installed . | . . . . . Triggered . | . . . . . Most Traps Carried 1 | . . . 1 1 Machines | -11 -10 -10 -10 -8 ---------- Run | Yrd Mat Min Sub Mat Machines Disabled . | . . . . . Max in Single Turn . | . . . . . Machines Repaired . | . . . . . Machines Dismantled . | . . . . . Machines Sabotaged . | . . . . . Overloaded Fab Kills . | . . . . . Hacking | -11 -10 -10 -10 -8 --------- Run | Yrd Mat Min Sub Mat Machines Accessed 10 | . 7 . . 3 Terminals 9 | . 6 . . 3 Fabricators . | . . . . . Repair Stations 1 | . 1 . . . Recycling Units . | . . . . . Scanalyzers . | . . . . . Garrison Access . | . . . . . Total Hacks 27 | . 20 . . 7 Successful 13 | . 11 . . 2 Failed 14 | . 9 . . 5 Catastrophic 1 | . 1 . . . Database Lockouts . | . . . . . Manual 19 | . 13 . . 6 Terminals 25 | . 18 . . 7 Fabricators . | . . . . . Repair Stations 2 | . 2 . . . Recycling Units . | . . . . . Scanalyzers . | . . . . . Garrison Access . | . . . . . Terminal Hacks 6 | . 5 . . 1 Prototype ID Bank 1 | . 1 . . . Branch Access Points 1 | . 1 . . . Terminal Index 1 | . 1 . . . Locate Traps 2 | . 1 . . 1 Zone Layout 1 | . 1 . . . Fabricator Hacks . | . . . . . Repair Station Hacks 2 | . 2 . . . Scan Component 1 | . 1 . . . Repair 1 | . 1 . . . Recycling Unit Hacks . | . . . . . Scanalyzer . | . . . . . Garrison Access Hacks . | . . . . . Unauthorized Hacks 5 | . 4 . . 1 Terminals 5 | . 4 . . 1 Botnet 5 | . 4 . . 1 Fabricators . | . . . . . Repair Stations . | . . . . . Recycling Units . | . . . . . Scanalyzers . | . . . . . Garrison Access . | . . . . . Data Cores Recovered . | . . . . . Used . | . . . . . Hacking Detections 10 | . 7 . . 3 Full Trace Events 2 | . 1 . . 1 Feedback Events . | . . . . . Feedback Blocked . | . . . . . Robot Schematics Acquired . | . . . . . Robots Built . | . . . . . Authchips . | . . . . . Time . | . . . . . Total Robot Build Rating . | . . . . . Part Schematics Acquired . | . . . . . Parts Built . | . . . . . Authchips . | . . . . . Time . | . . . . . Total Part Build Rating . | . . . . . Part Studies Acquired . | . . . . . Parts Repaired 1 | . 1 . . . Time 26 | . 26 . . . Parts Recycled . | . . . . . Recycled Matter . | . . . . . Retrieved Matter . | . . . . . Retrieved Components . | . . . . . Parts Scanalyzed . | . . . . . Part Schematics Acquired . | . . . . . Parts Damaged . | . . . . . Bothacking | -11 -10 -10 -10 -8 ------------ Run | Yrd Mat Min Sub Mat Used RIF Installer . | . . . . . Robots Hacked . | . . . . . Non-combat . | . . . . . Combat . | . . . . . Robot Hacks Applied . | . . . . . Relay Couplers Released . | . . . . . Fabnet Peak Effective % . | . . . . . Robots Rewired . | . . . . . Allies Hacked . | . . . . . Hacks Repelled . | . . . . . Allies | -11 -10 -10 -10 -8 -------- Run | Yrd Mat Min Sub Mat Total Allies . | . . . . . Largest Group . | . . . . . Highest-Rated Group . | . . . . . Highest-Rated Ally . | . . . . . Total Orders . | . . . . . Ally Attacks . | . . . . . Total Damage . | . . . . . Kills . | . . . . . Allies Corrupted . | . . . . . Allies Melted . | . . . . . Intel | -11 -10 -10 -10 -8 ------- Run | Yrd Mat Min Sub Mat Active Infowar (turns) 1741 | 72 793 14 399 463 Terrain 1205 | 72 672 . . 461 Structural 439 | . . 14 61 364 Seismic 642 | . 121 . 338 183 Robot Analysis Total . | . . . . . Derelict Logs Recovered . | . . . . . Drone Launches . | . . . . . Drone Recoveries . | . . . . . Exploration | -11 -10 -10 -10 -8 ------------- Run | Yrd Mat Min Sub Mat Turns Passed 2162 | 155 907 160 445 495 Spaces Moved 1011 | 72 429 78 238 194 Core 22 | 21 . . . 1 Treads 891 | 51 429 78 238 95 Legs . | . . . . . Wheels 98 | . . . . 98 Hover . | . . . . . Flight . | . . . . . Fastest Speed 50 | 50 160 160 160 105 Average Speed 156 | 148 160 160 160 143 Slowest Speed 500 | 160 160 160 160 500 Overloaded Moves . | . . . . . Propulsion Burnouts . | . . . . . Robots Hopped . | . . . . . Potential Cave-ins . | . . . . . Cave-ins Triggered . | . . . . . Exploration Rate (%) 31 | 5 82 37 18 16 Regions Visited 4 Branch Regions 2 Pre-discovered Areas . | . . . . . Known Exits Taken 1 | . 1 . . . Unknown Exits Taken 3 | 1 . 1 1 . Scrap Searched 3 | . . . 3 . Spaces Dug 8 | . 6 . . 2 Terrain Destroyed 8 | . 6 . . 2 Melee 7 | . 5 . . 2 Projectile 1 | . 1 . . . AOE . | . . . . . Terrain Rammed . | . . . . . Walls Destroyed . | . . . . . Machines Disabled . | . . . . . Actions | -11 -10 -10 -10 -8 --------- Run | Yrd Mat Min Sub Mat Total 1329 | 98 564 90 277 300 Wait 95 | . 61 . 18 16 Move 1007 | 71 428 77 237 194 Hop . | . . . . . Pick Up 33 | 8 13 . 3 9 Fast Attach 14 | 7 1 . 1 5 Attach 8 | . . . 2 6 Detach . | . . . . . Swap 12 | . 7 1 1 3 Drop 14 | . 7 . 1 6 Fire 29 | 12 13 . . 4 Melee 117 | . 34 12 14 57 Ram . | . . . . . Kick . | . . . . . Crush . | . . . . . Escape Stasis . | . . . . . Rewire . | . . . . . Trap . | . . . . . Miscellaneous . | . . . . . Route ------- -11/Scrapyard -10/Materials (discovered 3 exits: [*Mat x2] / *Min) -10/Mines -10/Subcaves -8/Materials History --------- Turn | Location | Event 13 | -11/Scrapyard | Discovered new exit (range 15) 156 | -11/Scrapyard | Entered Materials 307 | -10/Materials | Build established: Mutant 464 | -10/Materials | Discovered new exit (range 13) 513 | -10/Materials | Discovered new exit (range 10) 795 | -10/Materials | Discovered new exit (range 16) 900 | -10/Materials | Repaired Lgt. Treads 937 | -10/Materials | Identified exit to Mines 1063 | -10/Materials | Entered Mines 1210 | -10/Mines | Discovered new exit (range 6) 1223 | -10/Mines | Entered Subcaves 1282 | -10/Subcaves | Core integrity fell below 50% 1602 | -10/Subcaves | Discovered new exit (range 8) 1668 | -10/Subcaves | Entered Materials 1668 | -8/Materials | Evolved 4 slots: Propulsion x1, Utility x2, Weapon x1 1898 | -8/Materials | Lost 3 parts (1n1u1w) 2134 | -8/Materials | Core integrity fell below 50% 2163 | -8/Materials | Self-destructed Last Messages --------------- 02130_ K-01 Serf collects debris. 02131_ Imp. Terrain Scanner destroyed. 02131_ K-01 Serf collects debris. 02135_ Critical hit (Burn: +37). 02137_ Penetrated by Slug. 02140_ Slug penetrates W-25 Informer. 02140_ W-25 Informer destroyed. 02140_ K-01 Serf destroyed. 02141_ K-01 Serf collects debris. 02141_ K-01 Serf cleans the Matter Pump. 02141_ Sub. Power Source destroyed. 02143_ Acquired 10 matter. 02143_ Hammer follow-up attack on G-47 Trooper. 02143_ Slug penetrates K-01 Serf. 02145_ K-01 Serf cleans the Matter Pump. 02145_ K-01 Serf collects debris. 02149_ Penetrated by Slug. 02152_ G-47 Trooper knocked back. 02155_ Acquired 10 matter. 02162_ Penetrated by Slug. Map ----- +----------------------------------------------------+ | | | | | | | | | ?#????##############???????????????????????? | | ?????#?#############????#??????????????????? | | ???????## / ##???????????????????????? | | ????##### ##???????????????????????? | | ######### ##?#?????????????????????? | | ###### # ##???#?????#?????????????? | | ##]][ # ##???#??????#????????????? | | ## + """ """ ##??#????????????????????? | | ##!! # """ """ ##?????#?????????????????? | | ##!! # """ """ ############??????? ?????? | | ## ! ######################???#?????????? | | ##! ### # """"" ##??????#??????? | | ###### ### ! # ""T"" ##? ?????? ???? | | ###### ### # ##??"?????? ???? | | ???### ### # ##?????????????? | | ???## #########/# ##???? ????????? | | ?#?## "T" # """ ##??????????? ?? | | ???## ! o + """ ##??#???? ?????? | | ##### # "" ##?????????????? | | ####### a# [% =##??#??????????? | | # # ################?????? ?? | | # !! # """ """ @ %! =k u #??? | | # !! # """ """ [% %%t *%=h #??? | | #!!! + """ """g ################# #??? | | # # g ######?######??????????? | | # # ##?????#???#???????????? | | # + ! ###??##???#???#????????? | | # # ^ ### ##?##?????#?#??????????? | | # ##+###+#### ###?????##?#??????#????? | | # # % ## a###????????????????????? | | # # # ##??#???????????#?????? | | # # % # k ##?#?????#????????????? | | ####### +% T ##????????????????????? | | ####### %# ##???###??????????????? | | ?#???## ] # u ##?????##?????????????? | | ?????## = ## ###?#??#???????????????? | | #????## ! ## ###???##???????????????? | | ?????## ## ##?#???#???????????????? | | ???#?############ ##???##?#??????????????? | | ?????############ ##???##????????????????? | | ???#?#??######### ##?#???????????????????? | | ????#??########## ##?????????????????????? | | ????????## # ##???????#?????????????? | | ???#??#?## # ##????#????????????????? | | ???#????## # ##?????#???????????????? | | #???????## + ##?????##??????????????? | +----------------------------------------------------+ Best States ------------- Heat Dissipation 31 Energy Generation 15 Energy Capacity 250 Matter Stores 300 Matter Capacity 300 Sight Range 16 Terrain Scan Range 16 Terrain Scan Density 10 Armor Coverage 375 Resistance: KI 30 Evasion (%) 40 Recoil Reduction 2 Item Schematics ----------------- None Robot Schematics ------------------ None Fabricated ------------ Nothing Repaired ---------- Lgt. Treads | 32% | -10/Materials Studied --------- None Alien Tech Used ----------------- None Achievements -------------- None Challenges ------------ None Game ------ Seed CompactScrapMaterializer Manual? 0 Play Time 00:20:30 Cumulative 84.9 hours Start 2026.08.01 @ 10:55:14 End 2026.08.01 @ 11:15:24 Sessions 1 Manual Loads 0 Difficulty Rogue Special Mode None Game No. 86 Rogue 86 Adventurer 0 Explorer 0 Win Type - Total 0 Types 0/0/0/0/0/0/0/0/0/0 Lore% 32 Gallery% 43 Achievement% 34 Wizard Run 0 Options --------- Layout 1 ASCII 0 Keyboard 1 Movement Vi Keybinds 0 Fullscreen 1 Font 24/Smallcaps Map View 50x35 Zoom Use 0% Tactical HUD 1 Map Filters NONE Filters NONE Steam 1 RUN: 56800e01-db66-4716-8e15-b2f6253bf60d